[Event "Titled Tuesday Blitz January 31 Early 2023"]
[White "Wagh Suyog"]
[Black "Timofeev, Artyom"]
[WhiteFideId "25071688"]
[BlackFideId "4140419"]
[WhiteElo "2313"]
[BlackElo "2567"]
[Result "0-1"]
[Round "05"]
[TimeControl "180+2"]
[Date "2023.01.31"]
[WhiteClock "0:00:03"]
[BlackClock "0:00:38"]

1. d4 {[%clk 0:02:54]}  d5 {[%clk 0:02:59]} 2. c4 {[%clk 0:02:53]}  e6 {[%clk 0:02:58]} 3. Nc3 {[%clk 0:02:52]}  c6 {[%clk 0:02:58]} 4. e4 {[%clk 0:02:51]}  Bb4 {[%clk 0:02:57]} 5. cxd5 {[%clk 0:02:47]}  exd5 {[%clk 0:02:57]} 6. e5 {[%clk 0:02:47]}  Ne7 {[%clk 0:02:57]} 7. Bd3 {[%clk 0:02:46]}  Bf5 {[%clk 0:02:53]} 8. Ne2 {[%clk 0:02:44]}  O-O {[%clk 0:02:49]} 9. O-O {[%clk 0:02:44]}  Nd7 {[%clk 0:02:46]} 10. a3 {[%clk 0:02:40]}  Bxc3 {[%clk 0:02:45]} 11. bxc3 {[%clk 0:02:39]}  f6 {[%clk 0:02:39]} 12. exf6 {[%clk 0:02:25]}  Nxf6 {[%clk 0:02:36]} 13. Ng3 {[%clk 0:02:25]}  Bxd3 {[%clk 0:02:36]} 14. Qxd3 {[%clk 0:02:26]}  Qd7 {[%clk 0:02:30]} 15. a4 {[%clk 0:02:24]}  Rfe8 {[%clk 0:02:28]} 16. a5 {[%clk 0:02:21]}  Ng6 {[%clk 0:02:26]} 17. a6 {[%clk 0:02:16]}  b6 {[%clk 0:02:23]} 18. f3 {[%clk 0:02:13]}  c5 {[%clk 0:02:18]} 19. Bg5 {[%clk 0:02:12]}  c4 {[%clk 0:02:14]} 20. Qf5 {[%clk 0:01:51]}  Ne7 {[%clk 0:02:01]} 21. Qf4 {[%clk 0:01:29]}  Ng6 {[%clk 0:02:00]} 22. Qf5 {[%clk 0:01:27]}  Ne7 {[%clk 0:01:58]} 23. Qc2 {[%clk 0:01:26]}  Rf8 {[%clk 0:01:44]} 24. Rfe1 {[%clk 0:01:26]}  Rae8 {[%clk 0:01:43]} 25. Re5 {[%clk 0:01:20]}  Nc6 {[%clk 0:01:42]} 26. Rxe8 {[%clk 0:01:20]}  Nxe8 {[%clk 0:01:41]} 27. Qa4 {[%clk 0:01:15]}  Nd6 {[%clk 0:01:40]} 28. Re1 {[%clk 0:01:03]}  b5 {[%clk 0:01:40]} 29. Qa3 {[%clk 0:01:03]}  h6 {[%clk 0:01:38]} 30. Bc1 {[%clk 0:00:59]}  b4 {[%clk 0:01:31]} 31. cxb4 {[%clk 0:00:59]}  Nxd4 {[%clk 0:01:31]} 32. Qb2 {[%clk 0:00:49]}  N4b5 {[%clk 0:01:26]} 33. Qe5 {[%clk 0:00:48]}  Qf7 {[%clk 0:01:16]} 34. Rd1 {[%clk 0:00:47]}  d4 {[%clk 0:01:13]} 35. Qc5 {[%clk 0:00:37]}  Rc8 {[%clk 0:01:08]} 36. Qe5 {[%clk 0:00:36]}  d3 {[%clk 0:01:00]} 37. Ne4 {[%clk 0:00:19]}  Re8 {[%clk 0:00:49]} 38. Nxd6 {[%clk 0:00:08]}  Rxe5 {[%clk 0:00:49]} 39. Nxf7 {[%clk 0:00:09]}  Kxf7 {[%clk 0:00:48]} 40. Kf2 {[%clk 0:00:04]}  Re2+ {[%clk 0:00:47]} 41. Kg3 {[%clk 0:00:05]}  Ra2 {[%clk 0:00:44]} 42. Kf4 {[%clk 0:00:04]}  Rxa6 {[%clk 0:00:43]} 43. Ke5 {[%clk 0:00:04]}  Re6+ {[%clk 0:00:42]} 44. Kf5 {[%clk 0:00:03]}  Re2 {[%clk 0:00:38]} 0-1


[Site "https://www.chess.com"]

[Event "Titled Tuesday Blitz January 31 Early 2023"]
[White "Mitrabha, Guha"]
[Black "Sattarov, Bobir"]
[WhiteFideId "5057000"]
[BlackFideId "14203081"]
[WhiteElo "2507"]
[BlackElo "2366"]
[Result "0-1"]
[Round "05"]
[TimeControl "180+2"]
[Date "2023.01.31"]
[WhiteClock "0:00:13"]
[BlackClock "0:00:02"]

1. c4 {[%clk 0:02:51]}  Nf6 {[%clk 0:02:59]} 2. Nc3 {[%clk 0:02:49]}  g6 {[%clk 0:02:57]} 3. g3 {[%clk 0:02:49]}  Bg7 {[%clk 0:02:56]} 4. Bg2 {[%clk 0:02:50]}  O-O {[%clk 0:02:56]} 5. d4 {[%clk 0:02:48]}  d6 {[%clk 0:02:56]} 6. Nf3 {[%clk 0:02:44]}  Nc6 {[%clk 0:02:56]} 7. O-O {[%clk 0:02:44]}  Bg4 {[%clk 0:02:55]} 8. d5 {[%clk 0:02:43]}  Na5 {[%clk 0:02:56]} 9. b3 {[%clk 0:02:43]}  c5 {[%clk 0:02:55]} 10. Bd2 {[%clk 0:02:42]}  a6 {[%clk 0:02:54]} 11. e4 {[%clk 0:02:21]}  Rb8 {[%clk 0:02:52]} 12. Qe1 {[%clk 0:02:01]}  b5 {[%clk 0:02:25]} 13. e5 {[%clk 0:01:55]}  Nd7 {[%clk 0:02:19]} 14. Nxb5 {[%clk 0:01:34]}  Nxc4 {[%clk 0:02:14]} 15. bxc4 {[%clk 0:01:30]}  axb5 {[%clk 0:02:14]} 16. e6 {[%clk 0:01:26]}  Bxf3 {[%clk 0:02:11]} 17. Bxf3 {[%clk 0:01:26]}  Ne5 {[%clk 0:02:09]} 18. exf7+ {[%clk 0:01:26]}  Rxf7 {[%clk 0:02:10]} 19. Bg2 {[%clk 0:01:25]}  Nxc4 {[%clk 0:02:04]} 20. Bc3 {[%clk 0:01:26]}  Bxc3 {[%clk 0:01:58]} 21. Qxc3 {[%clk 0:01:27]}  Qa5 {[%clk 0:01:58]} 22. Qd3 {[%clk 0:01:23]}  Ne5 {[%clk 0:01:57]} 23. Qe2 {[%clk 0:01:21]}  c4 {[%clk 0:01:57]} 24. Bh3 {[%clk 0:01:19]}  Kf8 {[%clk 0:01:50]} 25. Be6 {[%clk 0:01:13]}  Rf6 {[%clk 0:01:42]} 26. f4 {[%clk 0:01:14]}  Qa7+ {[%clk 0:01:40]} 27. Kh1 {[%clk 0:01:12]}  Nd3 {[%clk 0:01:40]} 28. f5 {[%clk 0:01:12]}  Kg7 {[%clk 0:01:35]} 29. g4 {[%clk 0:01:01]}  g5 {[%clk 0:01:25]} 30. Rf3 {[%clk 0:01:01]}  h6 {[%clk 0:01:22]} 31. h4 {[%clk 0:00:58]}  Qd4 {[%clk 0:01:21]} 32. Rg1 {[%clk 0:00:58]}  Ra8 {[%clk 0:01:13]} 33. Qh2 {[%clk 0:00:51]}  Qe5 {[%clk 0:01:08]} 34. Qd2 {[%clk 0:00:48]}  Qe4 {[%clk 0:01:01]} 35. Rg3 {[%clk 0:00:25]}  Ne5 {[%clk 0:00:43]} 36. hxg5 {[%clk 0:00:25]}  Nxf3 {[%clk 0:00:42]} 37. gxf6+ {[%clk 0:00:25]}  exf6 {[%clk 0:00:43]} 38. Qf2 {[%clk 0:00:20]}  Ra3 {[%clk 0:00:34]} 39. Qb6 {[%clk 0:00:17]}  Nh4+ {[%clk 0:00:13]} 40. Kh2 {[%clk 0:00:15]}  Qe2+ {[%clk 0:00:08]} 41. Kh1 {[%clk 0:00:12]}  Qe1+ {[%clk 0:00:02]} 42. Rg1 {[%clk 0:00:13]}  Rh3# {[%clk 0:00:02]} 0-1


[Site "https://www.chess.com"]

[Event "Titled Tuesday Blitz January 31 Early 2023"]
[White "Fernandez Guillen, Ernesto J."]
[Black "Oparin, Grigoriy"]
[WhiteFideId "3512428"]
[BlackFideId "24125890"]
[WhiteElo "2477"]
[BlackElo "2667"]
[Result "1-0"]
[Round "05"]
[TimeControl "180+2"]
[Date "2023.01.31"]
[WhiteClock "0:00:09"]
[BlackClock "0:00:35"]

1. e4 {[%clk 0:03:00]}  c5 {[%clk 0:02:57]} 2. Nf3 {[%clk 0:02:58]}  d6 {[%clk 0:02:58]} 3. d4 {[%clk 0:02:51]}  cxd4 {[%clk 0:02:59]} 4. Nxd4 {[%clk 0:02:52]}  Nf6 {[%clk 0:02:59]} 5. Nc3 {[%clk 0:02:52]}  Nc6 {[%clk 0:03:00]} 6. Bc4 {[%clk 0:02:53]}  e5 {[%clk 0:02:59]} 7. Nf3 {[%clk 0:02:46]}  Be7 {[%clk 0:02:58]} 8. O-O {[%clk 0:02:43]}  O-O {[%clk 0:02:57]} 9. h3 {[%clk 0:02:39]}  h6 {[%clk 0:02:55]} 10. Qe2 {[%clk 0:02:39]}  Be6 {[%clk 0:02:53]} 11. Rd1 {[%clk 0:02:39]}  Qc8 {[%clk 0:02:44]} 12. Bb3 {[%clk 0:02:22]}  Na5 {[%clk 0:02:38]} 13. Bd5 {[%clk 0:02:14]}  Nxd5 {[%clk 0:02:28]} 14. Nxd5 {[%clk 0:02:15]}  Bd8 {[%clk 0:02:28]} 15. b3 {[%clk 0:02:09]}  b6 {[%clk 0:02:16]} 16. c4 {[%clk 0:02:07]}  Nb7 {[%clk 0:02:14]} 17. Ne3 {[%clk 0:02:04]}  Bg5 {[%clk 0:02:09]} 18. Ba3 {[%clk 0:02:01]}  Bxe3 {[%clk 0:02:08]} 19. Qxe3 {[%clk 0:02:02]}  Rd8 {[%clk 0:02:08]} 20. Rd2 {[%clk 0:01:59]}  Qc7 {[%clk 0:02:07]} 21. Rad1 {[%clk 0:01:58]}  Rd7 {[%clk 0:02:07]} 22. Nh4 {[%clk 0:01:36]}  Rad8 {[%clk 0:02:05]} 23. Nf5 {[%clk 0:01:33]}  f6 {[%clk 0:01:57]} 24. Qg3 {[%clk 0:01:17]}  Bxf5 {[%clk 0:01:56]} 25. exf5 {[%clk 0:01:16]}  d5 {[%clk 0:01:54]} 26. Rxd5 {[%clk 0:01:06]}  Rxd5 {[%clk 0:01:53]} 27. Rxd5 {[%clk 0:01:06]}  Rxd5 {[%clk 0:01:52]} 28. cxd5 {[%clk 0:01:07]}  Qd7 {[%clk 0:01:44]} 29. Qd3 {[%clk 0:01:06]}  Nd6 {[%clk 0:01:24]} 30. Bxd6 {[%clk 0:01:05]}  Qxd6 {[%clk 0:01:25]} 31. Qc4 {[%clk 0:01:05]}  Kf7 {[%clk 0:01:24]} 32. b4 {[%clk 0:00:56]}  Ke7 {[%clk 0:01:21]} 33. a4 {[%clk 0:00:41]}  Qd7 {[%clk 0:01:01]} 34. Qc6 {[%clk 0:00:29]}  h5 {[%clk 0:00:52]} 35. Qe6+ {[%clk 0:00:12]}  Kd8 {[%clk 0:00:52]} 36. d6 {[%clk 0:00:11]}  Kc8 {[%clk 0:00:38]} 37. b5 {[%clk 0:00:11]}  e4 {[%clk 0:00:36]} 38. g4 {[%clk 0:00:10]}  h4 {[%clk 0:00:36]} 39. Kg2 {[%clk 0:00:09]}  Kd8 {[%clk 0:00:36]} 40. Qg8+ {[%clk 0:00:07]}  Qe8 {[%clk 0:00:36]} 41. Qxg7 {[%clk 0:00:08]}  Qd7 {[%clk 0:00:35]} 42. Qxf6+ {[%clk 0:00:08]}  Kc8 {[%clk 0:00:35]} 43. Qe6 {[%clk 0:00:09]} 1-0


[Site "https://www.chess.com"]

[Event "Titled Tuesday Blitz January 31 Early 2023"]
[White "Hasangatin, Ramil"]
[Black "Yeletsky, Ivan"]
[WhiteFideId "4122160"]
[BlackFideId "24180327"]
[WhiteElo "2457"]
[BlackElo "2494"]
[Result "0-1"]
[Round "05"]
[TimeControl "180+2"]
[Date "2023.01.31"]
[WhiteClock "0:00:01"]
[BlackClock "0:00:07"]

1. e4 {[%clk 0:03:00]}  e6 {[%clk 0:02:58]} 2. d3 {[%clk 0:02:56]}  d5 {[%clk 0:02:58]} 3. Qe2 {[%clk 0:02:56]}  Ne7 {[%clk 0:02:53]} 4. Nf3 {[%clk 0:02:56]}  c5 {[%clk 0:02:53]} 5. g3 {[%clk 0:02:56]}  Nbc6 {[%clk 0:02:52]} 6. Bg2 {[%clk 0:02:57]}  g6 {[%clk 0:02:53]} 7. O-O {[%clk 0:02:57]}  Bg7 {[%clk 0:02:53]} 8. Re1 {[%clk 0:02:57]}  O-O {[%clk 0:02:53]} 9. e5 {[%clk 0:02:57]}  b6 {[%clk 0:02:30]} 10. h4 {[%clk 0:02:55]}  h6 {[%clk 0:02:29]} 11. Nbd2 {[%clk 0:02:52]}  a5 {[%clk 0:02:10]} 12. Nf1 {[%clk 0:02:50]}  a4 {[%clk 0:02:11]} 13. a3 {[%clk 0:02:48]}  Nf5 {[%clk 0:01:56]} 14. c3 {[%clk 0:02:46]}  Na5 {[%clk 0:01:56]} 15. Bf4 {[%clk 0:02:45]}  d4 {[%clk 0:01:31]} 16. c4 {[%clk 0:02:40]}  b5 {[%clk 0:01:25]} 17. g4 {[%clk 0:02:25]}  Ne7 {[%clk 0:01:23]} 18. cxb5 {[%clk 0:02:17]}  Rb8 {[%clk 0:01:02]} 19. N1d2 {[%clk 0:02:01]}  Nb3 {[%clk 0:00:50]} 20. Nxb3 {[%clk 0:01:59]}  axb3 {[%clk 0:00:50]} 21. a4 {[%clk 0:01:58]}  Bb7 {[%clk 0:00:47]} 22. Nd2 {[%clk 0:01:47]}  Bxg2 {[%clk 0:00:35]} 23. Kxg2 {[%clk 0:01:48]}  Nd5 {[%clk 0:00:35]} 24. Bg3 {[%clk 0:01:48]}  Nb4 {[%clk 0:00:35]} 25. Qe4 {[%clk 0:01:15]}  Nc2 {[%clk 0:00:27]} 26. Nxb3 {[%clk 0:01:15]}  Qe7 {[%clk 0:00:06]} 27. Na5 {[%clk 0:01:02]}  Ra8 {[%clk 0:00:04]} 28. Nc6 {[%clk 0:01:02]}  Qd7 {[%clk 0:00:04]} 29. a5 {[%clk 0:00:56]}  Rfc8 {[%clk 0:00:03]} 30. Rec1 {[%clk 0:00:35]}  Nxa1 {[%clk 0:00:03]} 31. Rxa1 {[%clk 0:00:35]}  Kh7 {[%clk 0:00:04]} 32. h5 {[%clk 0:00:29]}  Qb7 {[%clk 0:00:03]} 33. Nxd4 {[%clk 0:00:12]}  Qb8 {[%clk 0:00:02]} 34. Nf3 {[%clk 0:00:04]}  Qxb5 {[%clk 0:00:01]} 35. hxg6+ {[%clk 0:00:05]}  fxg6 {[%clk 0:00:01]} 36. Nh4 {[%clk 0:00:06]}  Qe8 {[%clk 0:00:01]} 37. a6 {[%clk 0:00:04]}  Rab8 {[%clk 0:00:02]} 38. a7 {[%clk 0:00:05]}  Ra8 {[%clk 0:00:02]} 39. Ra6 {[%clk 0:00:05]}  Qf7 {[%clk 0:00:02]} 40. f4 {[%clk 0:00:04]}  Re8 {[%clk 0:00:03]} 41. f5 {[%clk 0:00:03]}  exf5 {[%clk 0:00:03]} 42. gxf5 {[%clk 0:00:04]}  gxf5 {[%clk 0:00:04]} 43. Nxf5 {[%clk 0:00:05]}  Kh8 {[%clk 0:00:04]} 44. Nxh6 {[%clk 0:00:04]}  Qh5 {[%clk 0:00:04]} 45. Nf5 {[%clk 0:00:03]}  Rf8 {[%clk 0:00:05]} 46. Nxg7 {[%clk 0:00:02]}  Kxg7 {[%clk 0:00:06]} 47. Rf6 {[%clk 0:00:01]}  Rg8 {[%clk 0:00:05]} 48. Qb7+ {[%clk 0:00:01]}  Kh8 {[%clk 0:00:05]} 49. Rf4 {[%clk 0:00:01]}  Rxg3+ {[%clk 0:00:05]} 50. Kxg3 {[%clk 0:00:01]}  Rg8+ {[%clk 0:00:06]} 51. Kf2 {[%clk 0:00:01]}  Qh2+ {[%clk 0:00:07]} 0-1


[Site "https://www.chess.com"]

[Event "Titled Tuesday Blitz January 31 Early 2023"]
[White "Gokerkan, Cem Kaan"]
[Black "Panesso Rivera, Henry"]
[WhiteFideId "6336760"]
[BlackFideId "4402707"]
[WhiteElo "2500"]
[BlackElo "2342"]
[Result "1-0"]
[Round "05"]
[TimeControl "180+2"]
[Date "2023.01.31"]
[WhiteClock "0:00:12"]
[BlackClock "0:00:12"]

1. e4 {[%clk 0:02:54]}  e5 {[%clk 0:02:58]} 2. Nc3 {[%clk 0:02:52]}  Nf6 {[%clk 0:02:57]} 3. g3 {[%clk 0:02:51]}  Bc5 {[%clk 0:02:56]} 4. Bg2 {[%clk 0:02:51]}  h5 {[%clk 0:02:53]} 5. d3 {[%clk 0:02:45]}  d6 {[%clk 0:02:51]} 6. h3 {[%clk 0:02:44]}  a6 {[%clk 0:02:49]} 7. Bg5 {[%clk 0:02:39]}  c6 {[%clk 0:02:40]} 8. Nge2 {[%clk 0:02:37]}  b5 {[%clk 0:02:31]} 9. O-O {[%clk 0:02:24]}  Qb6 {[%clk 0:02:17]} 10. a4 {[%clk 0:02:17]}  Bb7 {[%clk 0:02:17]} 11. a5 {[%clk 0:02:12]}  Qa7 {[%clk 0:02:11]} 12. Bxf6 {[%clk 0:02:06]}  gxf6 {[%clk 0:02:10]} 13. h4 {[%clk 0:01:52]}  Nd7 {[%clk 0:02:08]} 14. Bh3 {[%clk 0:01:53]}  Ke7 {[%clk 0:02:02]} 15. Kg2 {[%clk 0:01:52]}  Rag8 {[%clk 0:02:01]} 16. Qd2 {[%clk 0:01:51]}  Nf8 {[%clk 0:01:56]} 17. Rad1 {[%clk 0:01:45]}  Ng6 {[%clk 0:01:47]} 18. Kh2 {[%clk 0:01:28]}  Bxf2 {[%clk 0:01:45]} 19. d4 {[%clk 0:01:22]}  Bxd4 {[%clk 0:01:37]} 20. Nxd4 {[%clk 0:01:19]}  exd4 {[%clk 0:01:14]} 21. Ne2 {[%clk 0:01:19]}  c5 {[%clk 0:01:09]} 22. Nf4 {[%clk 0:01:17]}  Ne5 {[%clk 0:01:08]} 23. Qf2 {[%clk 0:01:14]}  Rh6 {[%clk 0:01:00]} 24. c3 {[%clk 0:01:02]}  dxc3 {[%clk 0:00:54]} 25. bxc3 {[%clk 0:01:03]}  Qb8 {[%clk 0:00:53]} 26. Nxh5 {[%clk 0:00:41]}  Rxh5 {[%clk 0:00:20]} 27. Qxf6+ {[%clk 0:00:41]}  Ke8 {[%clk 0:00:21]} 28. Rxd6 {[%clk 0:00:41]}  Rg6 {[%clk 0:00:21]} 29. Re6+ {[%clk 0:00:33]}  fxe6 {[%clk 0:00:19]} 30. Qf8+ {[%clk 0:00:34]}  Kd7 {[%clk 0:00:19]} 31. Qxb8 {[%clk 0:00:35]}  Bxe4 {[%clk 0:00:15]} 32. Rd1+ {[%clk 0:00:27]}  Bd3 {[%clk 0:00:15]} 33. Qb7+ {[%clk 0:00:17]}  Kd6 {[%clk 0:00:15]} 34. Qxa6+ {[%clk 0:00:17]}  Kd5 {[%clk 0:00:14]} 35. Qb7+ {[%clk 0:00:13]}  Kc4 {[%clk 0:00:14]} 36. a6 {[%clk 0:00:12]}  Nf3+ {[%clk 0:00:12]} 37. Qxf3 {[%clk 0:00:12]} 1-0


[Site "https://www.chess.com"]

[Event "Titled Tuesday Blitz January 31 Early 2023"]
[White "Harsh Suresh"]
[Black "Jakubowski, Krzysztof"]
[WhiteFideId "45018464"]
[BlackFideId "1112848"]
[WhiteElo "2298"]
[BlackElo "2486"]
[Result "0-1"]
[Round "05"]
[TimeControl "180+2"]
[Date "2023.01.31"]
[WhiteClock "0:00:14"]
[BlackClock "0:01:11"]

1. e4 {[%clk 0:02:54]}  c5 {[%clk 0:02:58]} 2. Nc3 {[%clk 0:02:53]}  e6 {[%clk 0:02:58]} 3. f4 {[%clk 0:02:52]}  a6 {[%clk 0:02:56]} 4. Nf3 {[%clk 0:02:38]}  b5 {[%clk 0:02:53]} 5. d3 {[%clk 0:02:23]}  Nc6 {[%clk 0:02:52]} 6. Be2 {[%clk 0:02:21]}  d5 {[%clk 0:02:48]} 7. exd5 {[%clk 0:02:16]}  exd5 {[%clk 0:02:47]} 8. d4 {[%clk 0:02:16]}  Nf6 {[%clk 0:02:43]} 9. O-O {[%clk 0:02:15]}  cxd4 {[%clk 0:02:35]} 10. Nxd4 {[%clk 0:02:06]}  Bc5 {[%clk 0:02:34]} 11. Be3 {[%clk 0:02:06]}  Qb6 {[%clk 0:02:34]} 12. Ncxb5 {[%clk 0:01:26]}  axb5 {[%clk 0:02:02]} 13. Bxb5 {[%clk 0:01:27]}  Bd7 {[%clk 0:02:01]} 14. Bxc6 {[%clk 0:01:06]}  Bxc6 {[%clk 0:02:01]} 15. c3 {[%clk 0:01:02]}  Qxb2 {[%clk 0:01:39]} 16. Re1 {[%clk 0:01:01]}  Ne4 {[%clk 0:01:31]} 17. Rb1 {[%clk 0:00:33]}  Qxa2 {[%clk 0:01:25]} 18. Re2 {[%clk 0:00:22]}  Bxd4 {[%clk 0:01:24]} 19. Rxa2 {[%clk 0:00:19]}  Bxe3+ {[%clk 0:01:24]} 20. Kf1 {[%clk 0:00:19]}  Rxa2 {[%clk 0:01:22]} 21. Rb8+ {[%clk 0:00:19]}  Ke7 {[%clk 0:01:18]} 22. Rxh8 {[%clk 0:00:19]}  Rf2+ {[%clk 0:01:17]} 23. Ke1 {[%clk 0:00:19]}  Bd2+ {[%clk 0:01:18]} 24. Qxd2 {[%clk 0:00:18]}  Rxd2 {[%clk 0:01:18]} 25. Rxh7 {[%clk 0:00:16]}  Rxg2 {[%clk 0:01:18]} 26. h4 {[%clk 0:00:14]}  Rg4 {[%clk 0:01:17]} 27. h5 {[%clk 0:00:14]}  Bd7 {[%clk 0:01:17]} 28. Ke2 {[%clk 0:00:13]}  Bf5 {[%clk 0:01:17]} 29. Rh8 {[%clk 0:00:13]}  Rxf4 {[%clk 0:01:17]} 30. Ke3 {[%clk 0:00:14]}  Rh4 {[%clk 0:01:17]} 31. Kd4 {[%clk 0:00:14]}  Be6 {[%clk 0:01:16]} 32. Ke5 {[%clk 0:00:14]}  f6+ {[%clk 0:01:16]} 33. Kd4 {[%clk 0:00:14]}  Nd6+ {[%clk 0:01:16]} 34. Kc5 {[%clk 0:00:14]}  Rc4+ {[%clk 0:01:16]} 35. Kb6 {[%clk 0:00:14]}  Rxc3 {[%clk 0:01:14]} 36. h6 {[%clk 0:00:14]}  gxh6 {[%clk 0:01:14]} 37. Ka5 {[%clk 0:00:15]}  d4 {[%clk 0:01:14]} 38. Kb4 {[%clk 0:00:15]}  Rc8 {[%clk 0:01:13]} 39. Ka5 {[%clk 0:00:14]}  d3 {[%clk 0:01:13]} 40. Rh7+ {[%clk 0:00:14]}  Nf7 {[%clk 0:01:12]} 41. Kb6 {[%clk 0:00:14]}  d2 {[%clk 0:01:12]} 42. Kb7 {[%clk 0:00:14]}  d1=Q {[%clk 0:01:12]} 43. Rxf7+ {[%clk 0:00:15]}  Kxf7 {[%clk 0:01:12]} 44. Ka7 {[%clk 0:00:16]}  Qa1+ {[%clk 0:01:10]} 45. Kb6 {[%clk 0:00:15]}  Qb1+ {[%clk 0:01:10]} 46. Ka7 {[%clk 0:00:15]}  Rc7+ {[%clk 0:01:10]} 47. Ka6 {[%clk 0:00:15]}  Qb7+ {[%clk 0:01:11]} 48. Ka5 {[%clk 0:00:14]}  Rc6 {[%clk 0:01:11]} 49. Ka4 {[%clk 0:00:14]}  Ra6# {[%clk 0:01:11]} 0-1


[Site "https://www.chess.com"]

[Event "Titled Tuesday Blitz January 31 Early 2023"]
[White "Priasmoro, Novendra"]
[Black "Maksimovic, Bojan"]
[WhiteFideId "7105029"]
[BlackFideId "14408120"]
[WhiteElo "2504"]
[BlackElo "2486"]
[Result "1/2-1/2"]
[Round "05"]
[TimeControl "180+2"]
[Date "2023.01.31"]
[WhiteClock "0:00:18"]
[BlackClock "0:00:15"]

1. e4 {[%clk 0:02:52]}  c5 {[%clk 0:02:59]} 2. Nf3 {[%clk 0:02:51]}  e6 {[%clk 0:02:58]} 3. d4 {[%clk 0:02:52]}  cxd4 {[%clk 0:02:58]} 4. Nxd4 {[%clk 0:02:52]}  a6 {[%clk 0:02:58]} 5. Bd3 {[%clk 0:02:52]}  Bc5 {[%clk 0:02:54]} 6. Nb3 {[%clk 0:02:52]}  Ba7 {[%clk 0:02:52]} 7. Qe2 {[%clk 0:02:52]}  Nc6 {[%clk 0:02:51]} 8. Be3 {[%clk 0:02:52]}  Bb8 {[%clk 0:02:50]} 9. Nc3 {[%clk 0:02:50]}  Nge7 {[%clk 0:02:46]} 10. f4 {[%clk 0:02:49]}  O-O {[%clk 0:02:46]} 11. O-O {[%clk 0:02:49]}  f5 {[%clk 0:02:45]} 12. Rad1 {[%clk 0:02:48]}  fxe4 {[%clk 0:02:43]} 13. Bxe4 {[%clk 0:02:48]}  Nf5 {[%clk 0:02:37]} 14. Bc5 {[%clk 0:02:46]}  Rf7 {[%clk 0:02:26]} 15. Bxc6 {[%clk 0:02:39]}  bxc6 {[%clk 0:02:23]} 16. Qxe6 {[%clk 0:02:34]}  d6 {[%clk 0:02:07]} 17. Qe2 {[%clk 0:02:28]}  a5 {[%clk 0:01:58]} 18. Qf2 {[%clk 0:02:26]}  a4 {[%clk 0:01:46]} 19. Nc1 {[%clk 0:02:26]}  a3 {[%clk 0:01:24]} 20. b4 {[%clk 0:02:04]}  Qf6 {[%clk 0:01:12]} 21. Ne4 {[%clk 0:02:01]}  Qe7 {[%clk 0:01:08]} 22. Ng5 {[%clk 0:01:46]}  dxc5 {[%clk 0:00:58]} 23. Rfe1 {[%clk 0:01:47]}  Qf8 {[%clk 0:00:20]} 24. Nxf7 {[%clk 0:01:42]}  cxb4 {[%clk 0:00:20]} 25. Rd8 {[%clk 0:01:37]}  Ba7 {[%clk 0:00:20]} 26. Rxf8+ {[%clk 0:00:33]}  Kxf8 {[%clk 0:00:19]} 27. Ne5 {[%clk 0:00:33]}  Bxf2+ {[%clk 0:00:18]} 28. Kxf2 {[%clk 0:00:34]}  c5 {[%clk 0:00:17]} 29. Ncd3 {[%clk 0:00:35]}  Be6 {[%clk 0:00:14]} 30. Nxc5 {[%clk 0:00:20]}  Bxa2 {[%clk 0:00:14]} 31. Ned3 {[%clk 0:00:20]}  Bc4 {[%clk 0:00:03]} 32. Nxb4 {[%clk 0:00:21]}  a2 {[%clk 0:00:03]} 33. Ra1 {[%clk 0:00:21]}  Nd4 {[%clk 0:00:03]} 34. Ke3 {[%clk 0:00:21]}  Nb5 {[%clk 0:00:04]} 35. Nb3 {[%clk 0:00:21]}  Re8+ {[%clk 0:00:04]} 36. Kd2 {[%clk 0:00:21]}  Re2+ {[%clk 0:00:03]} 37. Kc1 {[%clk 0:00:17]}  Bxb3 {[%clk 0:00:02]} 38. cxb3 {[%clk 0:00:17]}  Nc3 {[%clk 0:00:03]} 39. Nc2 {[%clk 0:00:14]}  Rxg2 {[%clk 0:00:02]} 40. Kb2 {[%clk 0:00:15]}  Nd5 {[%clk 0:00:02]} 41. Rxa2 {[%clk 0:00:13]}  Rxh2 {[%clk 0:00:02]} 42. Ra8+ {[%clk 0:00:13]}  Kf7 {[%clk 0:00:03]} 43. Kc1 {[%clk 0:00:13]}  Nxf4 {[%clk 0:00:03]} 44. b4 {[%clk 0:00:13]}  Nd3+ {[%clk 0:00:02]} 45. Kb1 {[%clk 0:00:13]}  Rh4 {[%clk 0:00:03]} 46. Rb8 {[%clk 0:00:13]}  g5 {[%clk 0:00:02]} 47. b5 {[%clk 0:00:14]}  g4 {[%clk 0:00:03]} 48. b6 {[%clk 0:00:15]}  Rh6 {[%clk 0:00:03]} 49. Ne3 {[%clk 0:00:14]}  g3 {[%clk 0:00:03]} 50. Kc2 {[%clk 0:00:14]}  Nf4 {[%clk 0:00:03]} 51. Nf5 {[%clk 0:00:13]}  Rg6 {[%clk 0:00:02]} 52. b7 {[%clk 0:00:13]}  g2 {[%clk 0:00:02]} 53. Rf8+ {[%clk 0:00:13]}  Kxf8 {[%clk 0:00:02]} 54. b8=Q+ {[%clk 0:00:13]}  Kf7 {[%clk 0:00:03]} 55. Qc7+ {[%clk 0:00:13]}  Kf6 {[%clk 0:00:03]} 56. Qxf4 {[%clk 0:00:08]}  g1=Q {[%clk 0:00:04]} 57. Nh4+ {[%clk 0:00:06]}  Ke6 {[%clk 0:00:03]} 58. Qe4+ {[%clk 0:00:03]}  Kd6 {[%clk 0:00:02]} 59. Qb4+ {[%clk 0:00:03]}  Qc5+ {[%clk 0:00:02]} 60. Qxc5+ {[%clk 0:00:04]}  Kxc5 {[%clk 0:00:03]} 61. Nxg6 {[%clk 0:00:05]}  hxg6 {[%clk 0:00:04]} 62. Kc3 {[%clk 0:00:05]}  Kd5 {[%clk 0:00:04]} 63. Kd3 {[%clk 0:00:06]}  Ke5 {[%clk 0:00:04]} 64. Ke3 {[%clk 0:00:07]}  Kf5 {[%clk 0:00:05]} 65. Kf3 {[%clk 0:00:07]}  Kg5 {[%clk 0:00:05]} 66. Kg3 {[%clk 0:00:08]}  Kh5 {[%clk 0:00:05]} 67. Kh3 {[%clk 0:00:08]}  g5 {[%clk 0:00:06]} 68. Kg3 {[%clk 0:00:09]}  g4 {[%clk 0:00:07]} 69. Kg2 {[%clk 0:00:10]}  Kh4 {[%clk 0:00:07]} 70. Kh2 {[%clk 0:00:10]}  g3+ {[%clk 0:00:08]} 71. Kg2 {[%clk 0:00:11]}  Kg4 {[%clk 0:00:08]} 72. Kg1 {[%clk 0:00:12]}  Kf3 {[%clk 0:00:09]} 73. Kf1 {[%clk 0:00:12]}  Kf4 {[%clk 0:00:10]} 74. Kg2 {[%clk 0:00:13]}  Kg4 {[%clk 0:00:11]} 75. Kg1 {[%clk 0:00:14]}  Kh4 {[%clk 0:00:11]} 76. Kg2 {[%clk 0:00:14]}  Kh5 {[%clk 0:00:12]} 77. Kg1 {[%clk 0:00:15]}  Kg5 {[%clk 0:00:12]} 78. Kg2 {[%clk 0:00:16]}  Kf4 {[%clk 0:00:13]} 79. Kg1 {[%clk 0:00:17]}  Kf3 {[%clk 0:00:14]} 80. Kf1 {[%clk 0:00:17]}  g2+ {[%clk 0:00:14]} 81. Kg1 {[%clk 0:00:18]}  Ke3 {[%clk 0:00:15]} 82. Kxg2 {[%clk 0:00:18]} 1/2-1/2


[Site "https://www.chess.com"]